fUSD/lending_fUSD_20250611
["ID","MTS","AMOUNT","RATE_DAILY","PERIOD"]
[365330075,1749603052574,-500.86807127,0.0001717,2]
[365330076,1749603052584,-1288.74392519,0.00017257,2]
[365330077,1749603052594,-490.0,0.0001726,2]
[365330078,1749603052604,-376.25,0.0001726,2]
[365330079,1749603052614,-490.0,0.0001726,2]
[365330080,1749603052624,-490.0,0.0001726,2]
[365330081,1749603052634,-313.1,0.0001726,2]
[365330082,1749603052644,-490.0,0.0001726,2]
[365330083,1749603052653,-430.0,0.0001726,2]
[365330084,1749603052666,-430.0,0.0001726,2]
[365330085,1749603052675,-430.0,0.0001726,2]
[365330086,1749603052685,-490.0,0.0001726,2]
[365330087,1749603052695,-430.0,0.0001726,2]
[365330088,1749603052706,-430.0,0.0001726,2]
[365330089,1749603052716,-226.25,0.0001726,2]
[365330090,1749603052726,-250.0,0.0001726,2]
[365330091,1749603052736,-430.0,0.0001726,2]
[365330092,1749603052747,-288.04,0.0001726,2]
[365330093,1749603052757,-430.0,0.0001726,2]
[365330094,1749603052768,-250.0,0.0001726,2]
[365330095,1749603052956,-430.0,0.0001726,2]
[365330096,1749603052966,-430.0,0.0001726,2]
[365330097,1749603052976,-430.0,0.0001726,2]
[365330098,1749603052985,-430.0,0.0001726,2]
[365330099,1749603052995,-490.0,0.0001726,2]
[365330100,1749603053004,-430.0,0.0001726,2]
[365330101,1749603053014,-430.0,0.0001726,2]
[365330102,1749603053023,-430.0,0.0001726,2]
[365330103,1749603053033,-160.20077301,0.0001726,2]
[365330104,1749603053043,-430.0,0.0001726,2]
[365330105,1749603053053,-286.1,0.0001726,2]
[365330106,1749603053062,-490.0,0.0001726,2]
[365330107,1749603053073,-430.0,0.0001726,2]
[365330108,1749603053082,-546.28,0.0001726,2]
[365330109,1749603053092,-490.0,0.0001726,2]
[365330110,1749603053102,-430.0,0.0001726,2]
[365330111,1749603053111,-430.0,0.0001726,2]
[365330112,1749603053121,-430.0,0.0001726,2]
[365330113,1749603053131,-430.0,0.0001726,2]
[365330114,1749603053141,-567.27689091,0.0001726,2]
[365330115,1749603053152,-430.0,0.0001726,2]
[365330116,1749603053165,-490.0,0.0001726,2]
[365330117,1749603053175,-490.0,0.0001726,2]
[365330118,1749603053184,-490.0,0.0001726,2]
[365330119,1749603053195,-430.0,0.0001726,2]
[365330120,1749603053205,-490.0,0.0001726,2]
[365330121,1749603053215,-377.6,0.0001726,2]
[365330122,1749603053226,-490.0,0.0001726,2]
[365330123,1749603053236,-490.0,0.0001726,2]
[365330124,1749603053246,-490.0,0.0001726,2]
[365330125,1749603053256,-490.0,0.0001726,2]
[365330126,1749603053266,-490.0,0.0001726,2]
[365330127,1749603053277,-430.0,0.0001726,2]
[365330128,1749603053287,-490.0,0.0001726,2]
[365330129,1749603053297,-490.0,0.0001726,2]
[365330130,1749603053307,-430.0,0.0001726,2]
[365330131,1749603053317,-490.0,0.0001726,2]
[365330132,1749603053327,-430.0,0.0001726,2]
[365330133,1749603053336,-490.0,0.0001726,2]
[365330134,1749603053346,-430.0,0.0001726,2]
[365330135,1749603053356,-430.0,0.0001726,2]
[365330136,1749603053365,-430.0,0.0001726,2]
[365330137,1749603053374,-281.54,0.0001726,2]
[365330138,1749603053384,-430.0,0.0001726,2]
[365330139,1749603053393,-490.0,0.0001726,2]
[365330140,1749603053403,-490.0,0.0001726,2]
[365330141,1749603053414,-458.3,0.0001726,2]
[365330142,1749603053423,-430.0,0.0001726,2]
[365330143,1749603053432,-241.19300015,0.0001726,2]
[365330144,1749603053442,-605.78,0.0001726,2]
[365330145,1749603053451,-490.0,0.0001726,2]
[365330146,1749603053460,-430.0,0.0001726,2]
[365330147,1749603053469,-490.0,0.0001726,2]
[365330148,1749603053478,-430.0,0.0001726,2]
[365330149,1749603053487,-430.0,0.0001726,2]
[365330150,1749603053497,-490.0,0.0001726,2]
[365330151,1749603053506,-430.0,0.0001726,2]
[365330152,1749603053515,-439.55,0.0001726,2]
[365330153,1749603053524,-490.0,0.0001726,2]
[365330154,1749603053533,-490.0,0.0001726,2]
[365330155,1749603053542,-490.0,0.0001726,2]
[365330156,1749603053555,-1090.41,0.0001726,2]
[365330157,1749603053564,-490.0,0.0001726,2]
[365330158,1749603053573,-490.0,0.0001726,2]
[365330159,1749603053583,-490.0,0.0001726,2]
[365330160,1749603053592,-490.0,0.0001726,2]
[365330161,1749603053602,-490.0,0.0001726,2]
[365330162,1749603053611,-604.5,0.0001726,2]
[365330163,1749603053621,-192.84,0.00017314,2]
[365330164,1749603053630,-666.0,0.00017338,2]
[365330165,1749603053639,-1000.0,0.00017358,2]
[365330166,1749603053649,-3150.0,0.00017396,2]
[365330167,1749603053658,-500.0,0.00017423,2]
[365330168,1749603053667,-490.0,0.00017424,2]
[365330169,1749603053677,-490.0,0.00017424,2]
[365330170,1749603053687,-490.0,0.00017424,2]
[365330171,1749603053696,-443.2,0.00017424,2]
[365330172,1749603053706,-490.0,0.00017424,2]
[365330173,1749603053715,-490.0,0.00017424,2]
[365330174,1749603053725,-490.0,0.00017424,2]
[365330175,1749603053735,-490.0,0.00017424,2]
[365330176,1749603053745,-490.0,0.00017424,2]
[365330177,1749603053754,-490.0,0.00017424,2]
[365330178,1749603053763,-490.0,0.00017424,2]
[365330179,1749603053773,-490.0,0.00017424,2]
[365330180,1749603053783,-490.0,0.00017424,2]
[365330181,1749603053792,-490.0,0.00017424,2]
[365330182,1749603053801,-490.0,0.00017424,2]
[365330183,1749603053811,-490.0,0.00017424,2]
[365330184,1749603053821,-490.0,0.00017424,2]
[365330185,1749603053831,-343.85,0.00017424,2]
[365330186,1749603053840,-566.6,0.00017424,2]
[365330187,1749603053850,-197.86,0.00017424,2]
[365330188,1749603053860,-420.0,0.00017424,2]
[365330189,1749603053869,-490.0,0.00017424,2]
[365330190,1749603053878,-206.94,0.00017424,2]
[365330191,1749603053887,-194.28,0.00017424,2]
[365330192,1749603053896,-360.05,0.00017424,2]
[365330193,1749603053905,-490.0,0.00017424,2]
[365330194,1749603053915,-490.0,0.00017424,2]
[365330195,1749603053924,-490.0,0.00017424,2]
[365330196,1749603053934,-490.0,0.00017424,2]
[365330197,1749603053944,-1090.41,0.00017424,2]
[365330198,1749603053954,-490.0,0.00017424,2]
[365330199,1749603053963,-490.0,0.00017424,2]
[365330200,1749603053972,-490.0,0.00017424,2]
[365330201,1749603053982,-633.92,0.00017424,2]
[365330202,1749603053991,-490.0,0.00017424,2]
[365330203,1749603054001,-161.76654639,0.00017434,2]
[365330204,1749603054011,-1000.0,0.00017444,2]
[365330205,1749603054020,-150.0,0.00017482,7]
[365330206,1749603054029,-490.0,0.00017589,2]
[365330207,1749603054039,-490.0,0.00017589,2]
[365330208,1749603054049,-490.0,0.00017589,2]
[365330209,1749603054059,-490.0,0.00017589,2]
[365330210,1749603054068,-201.15,0.00017589,2]
[365330211,1749603054078,-490.0,0.00017589,2]
[365330212,1749603054088,-490.0,0.00017589,2]
[365330213,1749603054097,-490.0,0.00017589,2]
[365330214,1749603054107,-617.78,0.00017589,2]
[365330215,1749603054116,-610.16,0.00017589,2]
[365330216,1749603054125,-490.0,0.00017589,2]
[365330217,1749603054135,-490.0,0.00017589,2]
[365330218,1749603054144,-490.0,0.00017589,2]
[365330219,1749603054155,-490.0,0.00017589,2]
[365330220,1749603054165,-490.0,0.00017589,2]
[365330221,1749603054175,-490.0,0.00017589,2]
[365330222,1749603054185,-490.0,0.00017589,2]
[365330223,1749603054195,-490.0,0.00017589,2]
[365330224,1749603054205,-490.0,0.00017589,2]
[365330225,1749603054214,-490.0,0.00017589,2]
[365330226,1749603054224,-490.0,0.00017589,2]
[365330227,1749603054234,-1090.41,0.00017589,2]
[365330228,1749603054243,-171.79,0.00017589,2]
[365330229,1749603054252,-490.0,0.00017589,2]
[365330230,1749603054262,-490.0,0.00017589,2]
[365330231,1749603054271,-490.0,0.00017589,2]
[365330232,1749603054281,-250.0,0.00017624,2]
[365330233,1749603054291,-833.29909032,0.00017657,2]
[365330234,1749603054300,-150.0,0.0001768,2]
[365330235,1749603054310,-203.0,0.00017683,4]
[365330236,1749603054319,-583.52,0.00017753,2]
[365330237,1749603054329,-436.35,0.00017753,2]
[365330238,1749603054338,-490.0,0.00017753,2]
[365330239,1749603054348,-490.0,0.00017753,2]
[365330240,1749603054358,-490.0,0.00017753,2]
[365330241,1749603054367,-490.0,0.00017753,2]
[365330242,1749603054377,-490.0,0.00017753,2]
[365330243,1749603054386,-213.04,0.00017753,2]
[365330244,1749603054395,-490.0,0.00017753,2]
[365330245,1749603054404,-355.46,0.00017753,2]
[365330246,1749603054414,-490.0,0.00017753,2]
[365330247,1749603054424,-338.98,0.00017753,2]
[365330248,1749603054433,-490.0,0.00017753,2]
[365330249,1749603054442,-490.0,0.00017753,2]
[365330250,1749603054452,-490.0,0.00017753,2]
[365330251,1749603054461,-490.0,0.00017753,2]
[365330252,1749603054470,-490.0,0.00017753,2]
[365330253,1749603054479,-490.0,0.00017753,2]
[365330254,1749603054488,-1090.41,0.00017753,2]
[365330255,1749603054497,-632.08,0.00017753,2]
[365330256,1749603054506,-490.0,0.00017753,2]
[365330257,1749603054515,-484.7,0.00017753,2]
[365330258,1749603054524,-300.0,0.0001778,2]
[365330259,1749603054533,-600.0,0.0001778,4]
[365330260,1749603054542,-250.0,0.0001778,2]
[365330261,1749603054551,-500.0,0.00017808,2]
[365330262,1749603054559,-333.14414137,0.00017808,2]
[365330263,1749603054568,-500.0,0.00017808,2]
[365330264,1749603054578,-500.0,0.00017808,2]
[365330265,1749603054587,-256.579833,0.00017817,2]
[365330266,1749603054596,-167.5,0.00017834,2]
[365330267,1749603054606,-161.76654639,0.000179,2]
[365330268,1749603054615,-490.0,0.00017917,2]
[365330269,1749603054624,-490.0,0.00017917,2]
[365330270,1749603054633,-490.0,0.00017917,2]
[365330271,1749603054642,-342.85,0.00017917,2]
[365330272,1749603054651,-519.88,0.00017917,2]
[365330273,1749603054661,-490.0,0.00017917,2]
[365330274,1749603054670,-528.76,0.00017917,2]
[365330275,1749603054679,-571.14,0.00017917,2]
[365330276,1749603054688,-240.50986453,0.00017917,2]
[365330277,1749603054697,-278.32,0.00017917,2]
[365330278,1749603054706,-490.0,0.00017917,2]
[365330279,1749603054715,-490.0,0.00017917,2]
[365330280,1749603054724,-490.0,0.00017917,2]
[365330281,1749603054733,-1090.41,0.00017917,2]
[365330282,1749603054742,-490.0,0.00017917,2]
[365330283,1749603054751,-420.0,0.00017962,2]
[365330284,1749603054760,-165.32,0.00018013,2]
[365330285,1749603054769,-1680.0,0.00018052,2]
[365330286,1749603054778,-490.0,0.00018082,2]
[365330287,1749603054787,-265.8,0.00018082,2]
[365330288,1749603054797,-409.55,0.00018082,2]
[365330289,1749603054806,-490.0,0.00018082,2]
[365330290,1749603054815,-620.7,0.00018082,2]
[365330291,1749603054824,-490.0,0.00018082,2]
[365330292,1749603054833,-490.0,0.00018082,2]
[365330293,1749603054842,-1090.41,0.00018082,2]
[365330294,1749603054851,-490.0,0.00018082,2]
[365330295,1749603054860,-1111.17,0.00018162,2]
[365330296,1749603054869,-200.0,0.0001819,2]
[365330297,1749603054879,-167.89,0.0001819,2]
[365330298,1749603054888,-2612.76,0.0001819,2]
[365330299,1749603054898,-490.0,0.00018246,2]
[365330300,1749603054908,-490.0,0.00018246,2]
[365330301,1749603054917,-490.0,0.00018246,2]
[365330302,1749603054927,-490.0,0.00018246,2]
[365330303,1749603054935,-1090.41,0.00018246,2]
[365330304,1749603054946,-271.33,0.00018246,2]
[365330305,1749603054954,-1163.59,0.00018356,2]
[365330306,1749603054964,-161.76654639,0.00018365,2]
[365330307,1749603054973,-623.82816136,0.0001841,2]
[365330308,1749603054982,-490.0,0.0001841,2]
[365330309,1749603054991,-490.0,0.0001841,2]
[365330310,1749603055000,-490.0,0.0001841,2]
[365330311,1749603055009,-1090.41,0.0001841,2]
[365330312,1749603055018,-203.0,0.00018452,5]
[365330313,1749603055027,-833.82,0.00018537,2]
[365330314,1749603055036,-256.579833,0.00018557,2]
[365330315,1749603055045,-490.0,0.00018575,2]
[365330316,1749603055054,-490.0,0.00018575,2]
[365330317,1749603055063,-490.0,0.00018575,2]
[365330318,1749603055072,-1090.41,0.00018575,2]
[365330319,1749603055081,-151.0,0.00018631,2]
[365330320,1749603055090,-1957.856,0.00018631,2]
[365330321,1749603055099,-207.4,0.00018631,2]
[365330322,1749603055109,-2030.296672,0.00018686,2]
[365330323,1749603055117,-490.0,0.00018739,2]
[365330324,1749603055126,-490.0,0.00018739,2]
[365330325,1749603055135,-490.0,0.00018739,2]
[365330326,1749603055145,-1090.41,0.00018739,2]
[365330327,1749603055155,-2105.41764886,0.00018741,2]
[365330328,1749603055166,-784.28634942,0.00018796,2]
[365330329,1749603055175,-161.76654639,0.00018831,2]
[365330330,1749603055185,-1111.12,0.0001888,2]
[365330331,1749603055194,-150.0,0.00018898,2]
[365330332,1749603055205,-810.36316742,0.00018899,2]
[365330333,1749603055215,-779.76,0.000189,2]
[365330334,1749603055224,-490.0,0.00018904,2]
[365330335,1749603055234,-490.0,0.00018904,2]
[365330336,1749603055244,-490.0,0.00018904,2]
[365330337,1749603055253,-1090.41,0.00018904,2]
[365330338,1749603055263,-300.0,0.00018925,2]
[365330339,1749603055272,-6236.92914987,0.00018934,3]
[365330340,1749603055281,-779.76,0.00019,2]
[365330341,1749603055290,-779.76,0.00019,2]
[365330342,1749603055299,-779.76,0.00019,2]
[365330343,1749603055309,-779.76,0.00019,2]
[365330344,1749603055319,-250.0,0.00019,2]
[365330345,1749603055328,-500.0,0.00019,7]
[365330346,1749603055337,-500.0,0.00019,7]
[365330347,1749603055347,-500.0,0.00019,7]
[365330348,1749603055356,-174.02,0.00019,7]
[365330349,1749603055365,-225.79,0.00019,7]
[365330350,1749603055375,-500.0,0.00019,7]
[365330351,1749603055384,-500.0,0.00019,7]
[365330352,1749603055394,-500.0,0.00019,7]
[365330353,1749603055403,-500.0,0.00019,7]
[365330354,1749603055415,-500.0,0.00019,7]
[365330355,1749603055424,-500.0,0.00019,7]
[365330356,1749603055433,-500.0,0.00019,7]
[365330357,1749603055442,-500.0,0.00019,7]
[365330358,1749603055452,-500.0,0.00019,7]
[365330359,1749603055461,-500.0,0.00019,7]
[365330360,1749603055470,-451.07,0.00019,7]
[365330361,1749603055479,-175.58,0.00019,7]
[365330362,1749603055488,-168.0,0.00019,2]
[365330363,1749603055497,-165295.99302945,0.00019068,3]
[365330364,1749603055507,-490.0,0.00019068,2]
[365330365,1749603055515,-490.0,0.00019068,2]
[365330366,1749603055525,-490.0,0.00019068,2]
[365330367,1749603055534,-1090.41,0.00019068,2]
[365330368,1749603055543,-5555.6,0.000191,2]
[365330369,1749603055552,-412.9662797,0.00019177,2]
[365330370,1749603055561,-500.0,0.00019178,2]
[365330371,1749603055570,-500.0,0.00019178,2]
[365330372,1749603055579,-500.0,0.00019178,2]
[365330373,1749603055588,-500.0,0.00019178,2]
[365330374,1749603055597,-500.0,0.00019178,2]
[365330375,1749603055606,-615.38880921,0.00019178,2]
[365330376,1749603055615,-500.0,0.00019178,2]
[365330377,1749603055624,-500.0,0.00019178,2]
[365330378,1749603055633,-500.0,0.00019178,2]
[365330379,1749603055642,-500.0,0.00019178,2]
[365330380,1749603055651,-500.0,0.00019178,2]
[365330381,1749603055662,-500.0,0.00019178,2]
[365330382,1749603055672,-500.0,0.00019178,2]
[365330383,1749603055680,-500.0,0.00019178,2]
[365330384,1749603055689,-500.0,0.00019178,2]
[365330385,1749603055698,-500.0,0.00019178,2]
[365330386,1749603055707,-500.0,0.00019178,2]
[365330387,1749603055716,-500.0,0.00019178,2]
[365330388,1749603055725,-500.0,0.00019178,2]
[365330389,1749603055733,-500.0,0.00019178,2]
[365330390,1749603055742,-500.0,0.00019178,2]
[365330391,1749603055751,-500.0,0.00019178,2]
[365330392,1749603055760,-500.0,0.00019178,2]
[365330393,1749603055769,-500.0,0.00019178,2]
[365330394,1749603055778,-500.0,0.00019178,2]
[365330395,1749603055787,-500.0,0.00019178,2]
[365330396,1749603055796,-500.0,0.00019178,2]
[365330397,1749603055806,-500.0,0.00019178,2]
[365330398,1749603055815,-500.0,0.00019178,2]
[365330399,1749603055824,-500.0,0.00019178,2]
[365330400,1749603055833,-500.0,0.00019178,2]
[365330401,1749603055842,-250.0,0.00019178,2]
[365330402,1749603055851,-500.0,0.00019178,2]
[365330403,1749603055860,-151.0,0.00019178,2]
[365330404,1749603055870,-1000.0,0.00019178,2]
[365330405,1749603055880,-1000.0,0.00019178,2]
[365330406,1749603055889,-1000.0,0.00019178,2]
[365330407,1749603055899,-1000.0,0.00019178,2]
[365330408,1749603055909,-1000.0,0.00019178,2]
[365330409,1749603055918,-1000.0,0.00019178,2]
[365330410,1749603055928,-1000.0,0.00019178,2]
[365330411,1749603055938,-1000.0,0.00019178,2]
[365330412,1749603055946,-1000.0,0.00019178,2]
[365330413,1749603055955,-1000.0,0.00019178,2]
[365330414,1749603055964,-1000.0,0.00019178,2]
[365330415,1749603055973,-1000.0,0.00019178,2]
[365330416,1749603055983,-1000.0,0.00019178,2]
[365330417,1749603055992,-1000.0,0.00019178,2]
[365330418,1749603056002,-1000.0,0.00019178,2]
[365330419,1749603056012,-1000.0,0.00019178,2]
[365330420,1749603056022,-1000.0,0.00019178,2]
[365330421,1749603056031,-1000.0,0.00019178,2]
[365330422,1749603056041,-1000.0,0.00019178,2]
[365330423,1749603056051,-1000.0,0.00019178,2]
[365330424,1749603056061,-1000.0,0.00019178,2]
[365330425,1749603056071,-1000.0,0.00019178,2]
[365330426,1749603056080,-1000.0,0.00019178,2]
[365330427,1749603056090,-1000.0,0.00019178,2]
[365330428,1749603056100,-1000.0,0.00019178,2]
[365330429,1749603056111,-1000.0,0.00019178,2]
[365330430,1749603056122,-1000.0,0.00019178,2]
[365330431,1749603056132,-1000.0,0.00019178,2]
[365330432,1749603056141,-1000.0,0.00019178,2]
[365330433,1749603056152,-1000.0,0.00019178,2]
[365330434,1749603056167,-1000.0,0.00019178,2]
[365330435,1749603056177,-1000.0,0.00019178,2]
[365330436,1749603056186,-1000.0,0.00019178,2]
[365330437,1749603056196,-1000.0,0.00019178,2]
[365330438,1749603056207,-1000.0,0.00019178,2]
[365330439,1749603056217,-1000.0,0.00019178,2]
[365330440,1749603056227,-1000.0,0.00019178,2]
[365330441,1749603056237,-1000.0,0.00019178,2]
[365330442,1749603056248,-1000.0,0.00019178,2]
[365330443,1749603056257,-1000.0,0.00019178,2]
[365330444,1749603056266,-869.0,0.00019178,2]
[365330445,1749603056275,-169.84,0.00019178,2]
[365330446,1749603056284,-163.25,0.00019178,2]
[365330447,1749603056433,-1163.59,0.00019178,2]
[365330448,1749603056463,-1163.59,0.00019178,2]
[365330449,1749603056473,-1163.59,0.00019178,2]
[365330450,1749603056482,-1163.59,0.00019178,2]
[365330451,1749603056491,-1163.59,0.00019178,2]
[365330452,1749603056501,-1163.59,0.00019178,2]
[365330453,1749603056511,-163.33,0.00019178,2]
[365330454,1749603056520,-301.1,0.00019178,2]
[365330455,1749603056529,-150.32,0.00019178,2]
[365330456,1749603056539,-150.67,0.00019178,2]
[365330457,1749603056548,-1163.59,0.00019178,2]
[365330458,1749603056557,-163.33,0.00019178,2]
[365330459,1749603056567,-163.24,0.00019178,2]
[365330460,1749603056576,-1163.59,0.00019178,2]
[365330461,1749603056586,-954.97,0.00019178,2]
[365330462,1749603056595,-150.0,0.00019178,2]
[365330463,1749603056604,-163.33,0.00019178,2]
[365330464,1749603056614,-163.33,0.00019178,2]
[365330465,1749603056624,-353.82,0.00019178,2]
[365330466,1749603056633,-163.33,0.00019178,2]
[365330467,1749603056642,-163.33,0.00019178,2]
[365330468,1749603056652,-300.0,0.00019178,2]
[365330469,1749603056662,-354.51,0.00019178,2]
[365330470,1749603056671,-423.12,0.00019178,2]
[365330471,1749603056681,-354.51,0.00019178,2]
[365330472,1749603056690,-354.51,0.00019178,2]
[365330473,1749603056699,-163.33,0.00019178,2]
[365330474,1749603056708,-500.0,0.00019181,2]
[365330475,1749603056718,-203.0,0.00019222,6]
[365330476,1749603056727,-490.0,0.00019232,2]
[365330477,1749603056737,-221.2,0.00019232,2]
[365330478,1749603056746,-490.0,0.00019232,2]
[365330479,1749603056755,-1090.41,0.00019232,2]
[365330480,1749603056764,-161.76654639,0.00019297,2]
[365330481,1749603056773,-256.579833,0.00019297,2]
[365330482,1749603056782,-500.0,0.00019299,2]
[365330483,1749603056791,-46307.5476,0.000193,2]
[365330484,1749603056801,-439.68,0.00019357,2]
[365330485,1749603056810,-155.86872251,0.00019387,2]
[365330486,1749603056819,-214.5862385,0.00019396,2]
[365330487,1749603056829,-2450.42723037,0.00019397,2]
[365330488,1749603056838,-1766492.83614037,0.00019397,2]
[365330489,1749603056849,-539.17353369,0.00019397,2]
[365330490,1749603056858,-151.0,0.00019397,2]
[365330491,1749603056868,-151.0,0.00019397,2]
[365330492,1749603056878,-151.0,0.00019397,2]
[365330493,1749603056887,-490.0,0.00019397,2]
[365330494,1749603056897,-229.30975937,0.00019397,2]
[365330495,1749603056907,-1090.41,0.00019397,2]
[365330496,1749603056918,-151.0,0.00019397,2]
[365330497,1749603056928,-500.0,0.00019399,2]
[365330498,1749603056939,-79992.43435126,0.000194,2]
[365330499,1749603057507,-0.01544131,0.000194,2]
[365330500,1749603057519,-6768.94912095,0.000194,2]
[365330501,1749603057550,-490.0,0.00016767,2]
[365330502,1749603057559,-323926.3379295,0.000194,2]
[365330503,1749603057569,-151.0,0.000194,2]
[365330504,1749603057578,-151.0,0.000194,2]
[365330505,1749603057588,-182.390694,0.000194,2]
[365330506,1749603057597,-189.081705,0.000194,2]
[365330507,1749603057607,-151.0,0.000194,2]
[365330508,1749603057617,-189.081705,0.000194,2]
[365330509,1749603057626,-151.0,0.000194,2]
[365330510,1749603057636,-151.0,0.000194,2]
[365330511,1749603057645,-180.270169,0.000194,2]
[365330512,1749603057655,-180.270169,0.000194,2]
[365330513,1749603057668,-833.29909032,0.000194,3]
[365330514,1749603057677,-151.0,0.000194,2]
[365330515,1749603057686,-151.0,0.000194,2]
[365330516,1749603057696,-151.0,0.000194,2]
[365330517,1749603057706,-240.956702,0.000194,2]
[365330518,1749603057715,-240.956702,0.000194,2]
[365330519,1749603057725,-1000.0,0.000194,2]
[365330520,1749603057735,-151.0,0.000194,2]
[365330521,1749603057744,-151.0,0.000194,2]
[365330522,1749603057753,-151.0,0.000194,2]
[365330523,1749603057763,-197.457272,0.000194,2]
[365330524,1749603057772,-151.0,0.000194,2]
[365330525,1749603057781,-151.0,0.000194,2]
[365330526,1749603057791,-156.08806021,0.00019425,2]
[365330527,1749603057800,-214.67798108,0.00019425,2]
[365330528,1749603057810,-214.67798108,0.00019425,2]
[365330529,1749603057819,-635.62786303,0.00019499,2]
[365330530,1749603057829,-6857.70336005,0.000195,2]
[365330531,1749603057838,-490.0,0.00019561,2]
[365330532,1749603057847,-1090.41,0.00019561,2]
[365330533,1749603057856,-1040.473605,0.00019599,2]
[365330534,1749603057866,-1000.0,0.00019625,2]
[365330535,1749603057875,-587.0,0.0001963,2]
[365330536,1749603057884,-532.0,0.00019699,2]
[365330537,1749603057893,-593.12,0.00019726,2]
[365330538,1749603057903,-1090.41,0.00019726,2]
[365330539,1749603057915,-156.587,0.00019726,2]
[365330540,1749603057925,-705.699,0.00019762,2]
[365330541,1749603057934,-933.01132993,0.0001979,2]
[365330542,1749603057943,-800.0,0.00019791,2]
[365330543,1749603057952,-777.35528455,0.000198,2]
[365330544,1749603057962,-1000.0,0.000198,2]
[365330545,1749603057971,-171.5,0.000198,4]
[365330546,1749603057980,-933.01132991,0.00019808,2]
[365330547,1749603057990,-167.5,0.00019816,2]
[365330548,1749603057999,-777.35528453,0.00019825,2]
[365330549,1749603058009,-933.01132991,0.00019827,2]
[365330550,1749603058019,-1529.0,0.00019827,2]
[365330551,1749603058028,-1000.0,0.00019834,2]
[365330552,1749603058037,-500.0,0.00019839,2]
[365330553,1749603058046,-500.0,0.0001984,2]
[365330554,1749603058056,-500.0,0.0001984,2]
[365330555,1749603058065,-200.0,0.0001984,2]
[365330556,1749603058074,-933.01132991,0.00019845,2]
[365330557,1749603058084,-777.35528453,0.0001985,2]
[365330558,1749603058094,-3330.0,0.00019859,2]
[365330559,1749603058103,-945.0,0.00019859,2]
[365330560,1749603058113,-802.0,0.00019859,2]
[365330561,1749603058123,-636.0,0.00019859,2]
[365330562,1749603058132,-437.533,0.00019859,2]
[365330563,1749603058142,-556.0,0.00019859,2]
[365330564,1749603058152,-1672.0,0.00019859,2]
[365330565,1749603058166,-4085.0,0.00019859,2]
[365330566,1749603058175,-155.0,0.00019859,2]
[365330567,1749603058185,-6970.0,0.00019859,2]
[365330568,1749603058195,-883.0,0.00019859,2]
[365330569,1749603058206,-933.01132991,0.00019863,2]
[365330570,1749603058216,-2318.32912725,0.0001987,2]
[365330571,1749603058226,-777.35528453,0.00019875,2]
[365330572,1749603058238,-933.01132991,0.00019882,2]
[365330573,1749603058248,-11014.27741037,0.00019889,2]
[365330574,1749603058257,-1090.41,0.0001989,2]